Cogmind - Beta 11 X5 @@@ ROGUE MODE // 2021.06.08 @ 01:43:55 Player: cptwinky Result: Destroyed self via exploding Power Conduit Performance ------------- Evolutions (6) 3000 Regions Visited (23) 4600 Robots Destroyed (293) 1465 Value Destroyed (11267) 11267 Prototype IDs (20) 400 Alien Tech Used (0) 0 Bonus (3714) 3714 TOTAL SCORE: 24446 Bonus ------- High Alert Combat Kills 471 Follower Combat Kills 559 Entered Garrisons 1200 Used RIF Installer 2500 Met Data Miner 300 Friendly Fire -1316 Cogmind --------- Core Integrity 0/1150 Matter 275/300 Energy 100/100 System Corruption 16% Temperature Cool (24) Movement Core (50) Location -4/Factory Parts ------- > --- POWER (2) -------- (None) > --- PROPULSION (6) --- (None) > --- UTILITY (8) ------ (None) > --- WEAPON (3) ------- (None) > --- INVENTORY (5) ---- High-capacity Matter Pod (42) Improved Sensor Array Relay Coupler [Grunt] (35) Heavy Phase Cannon Improved Remote Datajack Peak State ------------ > --- POWER ------------ Reinforced Deuterium Engine Antimatter Reactor > --- PROPULSION ------- Heavy Treads Heavy Treads Heavy Treads > --- UTILITY ---------- Huge Storage Unit Improved Sensor Array Advanced Signal Interpreter Improved Target Analyzer Recoil Nullifier Improved Medium Armor Plating Layered Medium Armor Plating Relay Coupler [Grunt] > --- WEAPON ----------- KE Penetrator KE Penetrator KE Penetrator > --- INVENTORY -------- Heavy Siege Treads Advanced Heavy Treads Advanced Heavy Siege Treads Improved Energy Well High-capacity Matter Pod Tactical Coordination Suite Improved Weapon Cycler Makeshift Transmission Jammer Relay Coupler [NC] Relay Coupler [Grunt] Relay Coupler [Grunt] Heavy Phase Cannon Heavy Machine Gun KE Penetrator KE Penetrator KE Penetrator Heavy Rocket Launcher Long-range Missile Launcher Tiamat Missile Launcher Improved Datajack Remote Datajack Shock Maul [Rating: 110] Favorites ----------- Power Cooled Ion Engine Engine Cooled Ion Engine Power Core Light Fission Core Reactor Antimatter Reactor Propulsion Light Treads Treads Light Treads Leg Carbon-fiber Leg Wheel Armored Wheel Hover Unit Backup Propulsion I Utility High-capacity Storage Unit Device Improved Heat Sink Storage High-capacity Storage Unit Processor Improved Signal Interpreter Hackware Relay Coupler [Grunt] Protection Improved Light Armor Plating Weapon KE Penetrator Energy Gun Spread Laser Energy Cannon Heavy Phase Cannon Ballistic Gun KE Penetrator Ballistic Cannon Flak Cannon Launcher Heavy Rocket Launcher Special Weapon Remote Datajack Impact Weapon Shock Maul Slashing Weapon Mining Claw Special Melee Weapon Datajack Build | -11 -10 -10 -9 -9 -9 -8 -8 -7 -7 -7 -7 -6 -6 -6 -6 -6 -5 -5 -5 -5 -4 -4 -4 ------- Run | Scr Mat Min Mat Sto Gar Mat Gar Fac Low Low Dat Pro Fac Gar Fac Gar Fac Gar Fac Gar Fac Was Fac Slots Evolved 12 | . . . 2 . . 2 . 2 . . . . 2 . . . 2 . . . 2 . . Power 1 | . . . . . . . . . . . . . 1 . . . . . . . . . . Propulsion 4 | . . . 1 . . . . . . . . . 1 . . . 1 . . . 1 . . Utility 6 | . . . 1 . . 1 . 2 . . . . . . . . 1 . . . 1 . . Weapon 1 | . . . . . . 1 . . . . . . . . . . . . . . . . . Parts Attached 359 | 6 11 4 15 9 8 17 7 15 15 12 . 2 15 16 37 15 32 30 31 11 2 9 40 Power 24 | 1 . . 2 . . 1 . 1 . 2 . . 2 1 2 2 2 2 1 1 . 1 3 Engine 19 | 1 . . 2 . . 1 . 1 . 2 . . 2 . 2 2 2 2 1 1 . . . Core 1 | . . . . . . . . . . . . . . 1 . . . . . . . . . Reactor 4 | . . . . . . . . . . . . . . . . . . . . . . 1 3 Propulsion 87 | 2 3 . 3 3 1 4 3 1 2 2 . 1 3 3 13 4 12 10 5 1 . 3 8 Treads 58 | 2 3 . 3 3 1 4 3 1 1 2 . 1 2 3 8 1 1 3 5 . . 3 8 Leg 10 | . . . . . . . . . . . . . . . . 1 5 4 . . . . . Wheel 19 | . . . . . . . . . 1 . . . 1 . 5 2 6 3 . 1 . . . Hover . | . . . . . . . . . . . . . . . . . . . . . . . . Flight . | . . . . . . . . . . . . . . . . . . . . . . . . Utility 106 | 1 3 . 3 3 1 7 1 8 6 4 . 1 3 6 11 4 7 7 13 3 1 3 10 Device 51 | . 1 . 2 1 1 3 1 3 2 2 . 1 1 2 3 4 5 3 9 1 1 1 4 Storage 7 | 1 2 . 1 . . . . . . . . . 1 1 . . . . . . . . 1 Processor 8 | . . . . . . 1 . . 1 . . . 1 . 3 . . . 1 . . . 1 Hackware 10 | . . . . . . . . 1 1 . . . . 1 . . 1 3 1 . . . 2 Protection 30 | . . . . 2 . 3 . 4 2 2 . . . 2 5 . 1 1 2 2 . 2 2 Artifact . | . . . . . . . . . . . . . . . . . . . . . . . . Weapon 142 | 2 5 4 7 3 6 5 3 5 7 4 . . 7 6 11 5 11 11 12 6 1 2 19 Energy Gun 31 | 2 4 2 5 . 4 1 2 1 1 1 . . 4 1 2 . . 1 . . . . . Energy Cannon 2 | . . . . . . . . . . . . . . . . . . . . . . . 2 Ballistic Gun 56 | . . . . . . 3 . 2 4 1 . . . 2 6 4 7 7 6 1 1 2 10 Ballistic Cannon 2 | . . . . . . . . . 1 1 . . . . . . . . . . . . . Launcher 11 | . . . . . . . . . . . . . 1 2 . 1 1 . 1 1 . . 4 Special Weapon 7 | . . . . . . . . . . . . . . . . . . 2 1 2 . . 2 Impact Weapon 19 | . . . . 2 2 1 1 . . 1 . . 2 . 2 . 1 . 4 2 . . 1 Slashing Weapon 3 | . 1 1 1 . . . . . . . . . . . . . . . . . . . . Piercing Weapon . | . . . . . . . . . . . . . . . . . . . . . . . . Special Melee Weapon 11 | . . 1 1 1 . . . 2 1 . . . . 1 1 . 2 1 . . . . . Unidentified Prototypes 5 | . . . . 1 . . . . . . . . 1 . 1 . 1 . 1 . . . . Corrupted Parts 1 | . . . . 1 . . . . . . . . . . . . . . . . . . . System Corruption 4 | . . . . 4 . . . . . . . . . . . . . . . . . . . Parts Lost 97 | . 2 . 1 4 2 3 3 . 1 4 . . . 6 10 9 7 10 3 3 . . 29 Power 15 | . . . . . . 1 . . . 1 . . . 1 1 2 1 2 1 . . . 5 Propulsion 37 | . . . . 2 1 1 2 . . 1 . . . 2 2 3 5 4 2 1 . . 11 Utility 29 | . . . . 2 1 1 . . . 2 . . . 2 5 2 1 2 . 2 . . 9 Weapon 16 | . 2 . 1 . . . 1 . 1 . . . . 1 2 2 . 2 . . . . 4 Highest Loss Streak 10 | . 1 . 1 4 2 1 2 . 1 3 . . . 3 4 6 3 6 1 2 . . 10 Average Slot Usage (%) 95 | . 99 100 99 99 100 98 100 98 99 97 100 100 98 99 92 91 96 94 97 88 89 84 66 Engine 9 | . 14 14 10 11 11 9 9 7 7 6 7 7 11 9 7 12 11 9 11 10 10 5 3 Treads 19 | . 27 28 33 32 33 26 27 23 17 15 15 15 13 15 18 17 . 12 15 19 15 15 13 Leg 1 | . . . . . . . . . . . . . . . . 1 27 4 . . . . . Wheel 3 | . . . . . . . . . 4 7 7 7 13 10 7 4 1 8 10 . 5 . . Device 13 | . 13 14 21 20 19 13 9 17 19 13 15 15 13 10 8 10 14 11 11 2 10 10 7 Storage 7 | . 14 14 11 11 11 9 9 7 7 7 7 7 6 6 6 6 5 5 5 5 5 5 3 Processor 7 | . . . . . . 8 9 7 9 15 15 15 13 6 6 13 11 11 8 11 10 10 7 Hackware 1 | . . . . . . . . 5 . . . . . . . . 4 5 7 9 5 5 4 Protection 5 | . . . . 1 2 4 9 5 8 6 7 7 6 14 10 2 . 3 4 6 10 10 7 Energy Gun 8 | . 27 27 21 7 16 17 8 1 1 6 7 7 11 10 3 3 . . . . . . 1 Ballistic Gun 11 | . . . . . . 6 18 17 16 15 15 15 7 8 15 15 16 16 16 13 15 15 10 Naked Turns 57 | . . . . . . . . . . . . . . . . . . . . . . . 57 Heaviest Build 149 | 14 30 30 57 62 62 61 61 66 67 75 74 77 133 143 139 133 122 138 140 139 142 145 149 Greatest Support 210 | 40 40 40 60 60 60 60 63 63 63 12 12 12 24 80 120 120 80 117 157 154 12 210 210 Greatest Overweight (x) 13 | . . . . 1 1 1 1 1 5 6 6 6 5 11 13 4 3 8 5 1 11 11 1 Average Overweight (x) 2 | . . . . . . . . . 3 5 6 6 3 5 3 2 1 3 2 . 11 1 . Largest Inventory Capacity 25 | 8 15 15 20 20 20 20 20 20 20 20 20 20 25 25 25 25 25 25 25 25 25 25 25 Average Capacity 20 | 6 12 15 19 20 20 20 20 20 20 20 20 20 20 25 25 25 25 25 25 25 25 25 19 Most Carried 25 | 4 15 15 20 20 20 20 20 20 20 20 20 20 20 24 25 24 25 25 25 25 20 25 25 Average Carried 19 | 2 9 14 17 19 16 19 18 19 18 19 20 20 19 22 23 22 23 23 24 23 20 24 18 Final Capacity 25 | 8 15 15 20 20 20 20 20 20 20 20 20 20 25 25 25 25 25 25 25 25 25 25 5 Final Carried 25 | 4 15 15 20 16 20 20 20 19 20 20 20 20 20 22 22 23 21 25 25 21 20 25 5 Class Distribution -------------------- 23% | Bothacker-Tank 18% | Mutant 12% | Scavenger-Skirmisher 10% | Bothacker-Gunner 7% | Scavenger-Mutant 7% | Scavenger-Gunner 6% | Scavenger-Tank 6% | Bothacker-Mutant 4% | Skirmisher Dominant Class ---------------- Mutant | -10/Materials Mutant | -10/Mines Mutant | -9/Materials Scavenger-Mutant | -9/Storage Mutant | -9/Garrison Bothacker-Tank | -8/Materials Bothacker-Tank | -8/Garrison Bothacker-Mutant | -7/Factory Scavenger-Skirmisher | -7/Lower Caves Scavenger-Skirmisher | -7/Lower Caves Scavenger-Skirmisher | -7/Data Miner Scavenger-Skirmisher | -6/Proximity Caves Bothacker-Tank | -6/Factory Scavenger-Tank | -6/Garrison Bothacker-Tank | -6/Factory Bothacker-Gunner | -6/Garrison Scavenger-Gunner | -5/Factory Bothacker-Gunner | -5/Garrison Bothacker-Tank | -5/Factory Bothacker-Gunner | -5/Garrison Bothacker-Tank | -4/Factory Bothacker-Tank | -4/Waste Scavenger-Gunner | -4/Factory Resources | -11 -10 -10 -9 -9 -9 -8 -8 -7 -7 -7 -7 -6 -6 -6 -6 -6 -5 -5 -5 -5 -4 -4 -4 ----------- Run | Scr Mat Min Mat Sto Gar Mat Gar Fac Low Low Dat Pro Fac Gar Fac Gar Fac Gar Fac Gar Fac Was Fac Matter Collected 8744 | 212 128 270 145 50 88 273 359 93 478 394 . 33 168 313 576 485 1101 1098 862 277 . 228 1113 Remotely . | . . . . . . . . . . . . . . . . . . . . . . . . Salvage Created 11896 | . 797 273 544 663 159 634 474 93 298 585 . 56 542 365 634 410 897 1246 914 431 . 224 1657 Parts 577 | . 51 12 31 22 16 44 33 8 19 29 . 6 22 16 25 24 29 53 38 15 . 1 83 Haulers Intercepted 10 | . 2 . 4 3 . . . . . . . . . . . . . . . . . . 1 Recyclers Shooed 12 | . 1 . . . . 1 . . . . . . 1 . 1 . 1 . . . . . 7 Parts Field Recycled . | . . . . . . . . . . . . . . . . . . . . . . . . Retrieved Matter . | . . . . . . . . . . . . . . . . . . . . . . . . Parts Self-Destructed 36 | . . . . . . . . . 4 23 . 9 . . . . . . . . . . . Prevented . | . . . . . . . . . . . . . . . . . . . . . . . . Kills | -11 -10 -10 -9 -9 -9 -8 -8 -7 -7 -7 -7 -6 -6 -6 -6 -6 -5 -5 -5 -5 -4 -4 -4 ------- Run | Scr Mat Min Mat Sto Gar Mat Gar Fac Low Low Dat Pro Fac Gar Fac Gar Fac Gar Fac Gar Fac Was Fac Combat Hostiles Destroyed 229 | . 12 8 12 10 10 19 16 2 2 11 . 1 9 13 7 14 9 20 16 11 . . 27 Melee 8 | . . . . 6 1 . . . . . . . . . . . . . . 1 . . . Guns 177 | . 10 7 12 . 9 19 16 2 . 8 . 1 9 7 7 9 8 20 15 4 . . 14 Cannons 5 | . . . . . . . . . 2 3 . . . . . . . . . . . . . AOE 33 | . 1 1 . . . . . . . . . . . 6 . 5 1 . 1 5 . . 13 Classes Destroyed 16 | . 6 2 1 . . 3 . 1 1 . . . . . 2 . . . . . . . . Worker 16 | . 1 1 . . . 2 . . . . . . 1 . 2 . 1 . 2 . . . 6 Builder 12 | . 1 . . 1 . 1 . . . . . . . . . . . . . . . . 9 Hauler 10 | . 2 . 4 3 . . . . . . . . . . . . . . . . . . 1 Recycler 8 | . . . . . . . . . . . . . . . 2 . 4 . . . . . 2 Operator 5 | . 1 . 1 . . 1 . . . . . . 1 . 1 . . . . . . . . Watcher 10 | . 3 . 1 1 . 1 . . . . . . 1 . 1 . . . 1 . . . 1 Swarmer 72 | . . 3 4 . 9 5 9 . . 3 . . 4 8 . 3 4 6 3 5 . . 6 Grunt 76 | . 12 4 3 5 . 7 5 . 2 4 . . 4 . . 6 1 9 2 2 . . 10 Brawler 6 | . . . . . . 1 . . . 2 . . . . . . . 2 1 . . . . Duelist 3 | . . . . . . 1 . . . . . . . . . . . 1 . 1 . . . Sentry 32 | . . . 5 5 1 3 2 1 . 1 . . 1 3 2 2 1 1 3 1 . . . Hunter 23 | . . . . . . 2 . . . . . 1 . 2 4 1 1 . 3 2 . . 7 Programmer 13 | . . . . . . . . 1 . 1 . . . . . 1 2 . 4 . . . 4 Behemoth 3 | . . . . . . . . . . . . . . . 1 1 . 1 . . . . . Assembled 1 | . . 1 . . . . . . . . . . . . . . . . . . . . . Mutant 3 | . . . . . . . . . 2 1 . . . . . . . . . . . . . Commander 1 | . . . . . . . . . 1 . . . . . . . . . . . . . . Best Kill Streak 11 | . 4 4 7 3 6 4 6 1 2 7 . 1 4 4 4 7 7 5 5 8 . . 11 Combat Bots Only 8 | . 3 3 3 3 6 4 6 1 2 7 . 1 4 4 3 7 6 5 3 8 . . 6 Max Kills in Single Turn 5 | . 1 2 1 1 2 2 2 1 1 1 . 1 2 3 1 2 1 1 3 2 . . 5 Gunslinging 1 | . . . . . . 1 1 . . . . . 1 . . . . . 1 . . . . Exploded 5 | . 1 1 . . . . . . . . . . . 3 . 2 1 . 1 2 . . 5 Melee 1 | . . . . 1 1 . . . . . . . . . . . . . . 1 . . . Uniques/NPCs Destroyed . | . . . . . . . . . . . . . . . . . . . . . . . . Combat | -11 -10 -10 -9 -9 -9 -8 -8 -7 -7 -7 -7 -6 -6 -6 -6 -6 -5 -5 -5 -5 -4 -4 -4 -------- Run | Scr Mat Min Mat Sto Gar Mat Gar Fac Low Low Dat Pro Fac Gar Fac Gar Fac Gar Fac Gar Fac Was Fac Damage Taken 21808 | . 381 174 224 887 260 939 787 217 95 1256 . 57 284 1024 1967 1365 1338 1847 1175 1220 . . 6311 Core 3041 | . 79 35 12 129 34 120 79 32 15 52 . 13 24 48 187 103 251 240 78 288 . . 1222 Absorbed by Shields 819 | . . . 88 78 4 . . . . . . 21 108 189 . 142 . 174 . . . . 15 Reduced by Siege Mode 146 | . . . . . . . . . . . . . . . . . . . . 6 . . 140 Core Remaining (%) 61 | 100 . 54 . . 56 . 63 . . . . 84 . . . 57 . . . 14 . . . Volleys Fired 622 | . 56 17 29 . 9 43 49 4 21 23 . 1 22 25 36 27 35 79 49 15 . 9 73 Largest 3 | . 2 2 2 . 2 3 3 3 3 3 . 3 3 3 3 3 3 3 3 3 . 3 3 Hottest 189 | . 80 80 130 . 130 153 111 111 95 139 . 139 189 188 138 136 90 99 99 99 . 99 98 Shots Fired 1585 | . 108 34 58 . 18 122 147 12 47 69 . 3 64 69 107 71 97 200 137 35 . 27 160 Gun 1514 | . 108 34 58 . 18 122 147 12 44 55 . 3 64 67 107 66 93 187 132 30 . 27 140 Cannon 20 | . . . . . . . . . 3 14 . . . . . . . . . . . . 3 Launcher 29 | . . . . . . . . . . . . . . 2 . 5 4 . 2 3 . . 13 Special 22 | . . . . . . . . . . . . . . . . . . 13 3 2 . . 4 Kinetic 1039 | . . . . . . 37 98 8 47 60 . 2 23 32 78 46 93 187 132 30 . 27 139 Thermal 349 | . . . 54 . 18 85 49 4 . 9 . 1 41 35 29 20 . . . . . . 4 Explosive 29 | . . . . . . . . . . . . . . 2 . 5 4 . 2 3 . . 13 Electromagnetic 146 | . 108 34 4 . . . . . . . . . . . . . . . . . . . . Robot Hit Streak 26 | . 9 8 13 . 6 26 22 4 18 12 . 1 8 16 18 9 10 19 9 10 . 10 17 Robot Miss Streak 10 | . 5 4 6 . 4 10 7 2 2 7 . 1 6 6 10 4 7 5 5 2 . 1 6 Penetration Max 1 | . . . . . . . . . . . . . . . 1 . 1 1 1 . . . 1 Secondary Targets 30 | . 4 1 . . 2 5 3 . . 1 . . 4 1 . 2 . 3 2 . . . 2 Max Gunslinging Chain 1 | . 1 1 . . 1 1 1 . . 1 . . 1 1 . 1 . 1 1 . . . 1 Shots Hit Robots 1175 | . 67 22 51 54 17 101 119 18 42 46 . 1 34 51 85 60 53 129 78 26 . 22 99 Core Hits 842 | . 30 12 68 8 23 123 111 8 15 37 . 1 18 46 57 74 21 46 38 16 . 2 88 Critical Kills 21 | . . . . . . . . . . . . 1 2 . . . 2 2 4 2 . . 8 Critical Parts Destroyed 32 | . . . . 2 . . 1 . . . . . . . . . 3 5 5 1 . 4 11 Critical Strikes 66 | . 2 . . 3 . . 1 . . . . 1 6 1 . . 5 9 10 4 . 5 19 Burn 5 | . . . . . . . . . . . . . 4 1 . . . . . . . . . Destroy 56 | . . . . . . . 1 . . . . 1 2 . . . 5 9 10 4 . 5 19 Corrupt 2 | . 2 . . . . . . . . . . . . . . . . . . . . . . Smash 3 | . . . . 3 . . . . . . . . . . . . . . . . . . . Melee Attacks 115 | . 1 6 1 63 7 3 1 6 1 3 . . 4 . 2 . 3 . 4 7 . . 3 Impact 98 | . . . . 63 7 3 1 . . 3 . . 4 . 2 . 1 . 4 7 . . 3 Slashing 7 | . 1 5 1 . . . . . . . . . . . . . . . . . . . . Piercing . | . . . . . . . . . . . . . . . . . . . . . . . . Sneak Attacks 22 | . 1 1 . 7 . 1 . 6 . . . . . . . . 2 . . 4 . . . Combat Hostiles 5 | . . 1 . . . . . . . . . . . . . . . . . 4 . . . Follow-up Attacks 11 | . . . . 9 2 . . . . . . . . . . . . . . . . . . Damage Inflicted 31487 | . 1257 407 664 2122 282 1545 1550 173 743 947 . 19 880 1325 1651 2283 1413 2776 2398 1360 . 531 7161 Guns 21280 | . 931 316 641 . 150 1415 1550 173 659 608 . 19 838 899 1648 1246 1321 2775 2083 476 . 531 3001 Cannons 423 | . . . . . . . . . 84 339 . . . . . . . . . . . . . Explosions 6770 | . 225 91 . . . . . . . . . . . 426 . 1037 92 . 283 503 . . 4113 Melee 2868 | . 93 . . 2122 132 114 . . . . . . . . . . . . 26 381 . . . Ramming 146 | . 8 . 23 . . 16 . . . . . . 42 . 3 . . 1 6 . . . 47 Kinetic 15571 | . . . . . . 302 750 118 743 829 . 19 313 393 1179 746 1321 2775 2083 476 . 531 2993 Thermal 6995 | . 225 91 618 . 150 1113 800 55 . 118 . . 525 506 469 500 . . . . . . 1825 Explosive 4637 | . . . . . . . . . . . . . . 426 . 1037 92 . 283 503 . . 2296 Electromagnetic 1270 | . 931 316 23 . . . . . . . . . . . . . . . . . . . . Impact 2775 | . . . . 2122 132 114 . . . . . . . . . . . . 26 381 . . . Slashing 93 | . 93 . . . . . . . . . . . . . . . . . . . . . . Piercing . | . . . . . . . . . . . . . . . . . . . . . . . . Highest Corruption 16 | . . . . 4 4 1 1 1 1 3 3 3 . . . 2 2 3 2 4 . . 16 Average Corruption 2 | . . . . 4 4 1 1 1 1 2 3 3 . . . 1 1 2 1 4 . . 3 Corruption Purged 11 | . . . . . . . . . . . . . . . . . 2 3 3 . . . 3 Effects 88 | . . . . 10 9 . 2 2 10 18 2 7 . . . 4 3 6 1 2 . . 12 Message Errors 26 | . . . . 4 5 . 2 1 2 4 . 2 . . . 1 2 1 1 . . . 1 Matter Fused 10 | . . . . . 2 . . . . 4 1 . . . . . . 2 . . . . 1 Heat Flow Errors 14 | . . . . 2 1 . . . . 4 . 1 . . . 1 . 1 . 1 . . 3 Energy Discharges 13 | . . . . 1 . . . 1 4 3 1 . . . . 2 . . . . . . 1 Parts Rejected 3 | . . . . 1 . . . . . . . . . . . . . . . 1 . . 1 Data Loss (minor) 18 | . . . . 2 1 . . . 3 3 . 4 . . . . 1 1 . . . . 3 Misfires 1 | . . . . . . . . . . . . . . . . . . . . . . . 1 Weapon Failures 3 | . . . . . . . . . 1 . . . . . . . . 1 . . . . 1 Overload Shots . | . . . . . . . . . . . . . . . . . . . . . . . . Overflow Damage 1404 | . 17 . . 415 32 . . . . . . . 12 32 . 12 . . . 221 . . 663 Projectiles . | . . . . . . . . . . . . . . . . . . . . . . . . Explosions 755 | . 17 . . . . . . . . . . . . 32 . 12 . . . 31 . . 663 Melee 649 | . . . . 415 32 . . . . . . . 12 . . . . . . 190 . . . Knockbacks 10 | . . . . 4 . . . . 3 3 . . . . . . . . . . . . . Impact 4 | . . . . 4 . . . . . . . . . . . . . . . . . . . Kinetic 6 | . . . . . . . . . 3 3 . . . . . . . . . . . . . Secondary . | . . . . . . . . . . . . . . . . . . . . . . . . Self-Inflicted Damage 671 | . . . . . . . . . . . . . 21 40 . 66 . . . 23 . . 521 Shots 15 | . . . . . . . . . . . . . . 3 . 3 . . . 1 . . 8 Rammed 12 | . 4 . 1 . . 2 . . . . . . 1 . . . . 1 1 . . . 2 Targets Rammed 15 | . 4 . 1 . . 3 . . . . . . 1 . 1 . . 1 2 . . . 2 Kicked . | . . . . . . . . . . . . . . . . . . . . . . . . Crushed 3 | . . . . . . 1 . . . . . . . . 1 . . . 1 . . . . Highest Temperature 449 | . 262 72 109 265 143 225 63 1 . 229 . 160 337 264 132 449 . 169 345 251 . 127 177 Average Temperature 75 | . 81 31 26 131 74 59 21 1 . 48 . 72 113 92 39 208 . 49 83 75 . 62 68 Received Heat Transfer 3409 | . 219 51 79 382 6 297 198 42 54 360 . . 61 156 132 331 210 324 99 81 . . 327 Effects 6 | . . . . . . . . . . . . . 1 . . 2 . . 3 . . . . Shutdowns 1 | . . . . . . . . . . . . . 1 . . . . . . . . . . Interference 3 | . . . . . . . . . . . . . . . . . . . 3 . . . . Matter Decay 2 | . . . . . . . . . . . . . . . . 2 . . . . . . . Siege Activations 4 | . . . . . . . . . . . . . . . . . . . . 1 . . 3 Total Turns 95 | . . . . . . . . . . . . . . . . . . . . 11 . . 84 Longest Duration 50 | . . . . . . . . . . . . . . . . . . . . 11 . . 50 Robots Corrupted 2 | . 2 . . . . . . . . . . . . . . . . . . . . . . Combat Hostiles 1 | . 1 . . . . . . . . . . . . . . . . . . . . . . Parts Fried 20 | . 6 . . 10 2 . . . . . . . . . . . . . . 2 . . . Impact Corruptions 24 | . . . . 17 2 . . . . . . . 1 . . . . . . 4 . . . Robots Melted 1 | . . . . . . . . . . . . . 1 . . . . . . . . . . Combat Hostiles . | . . . . . . . . . . . . . . . . . . . . . . . . Parts Melted 9 | . . 1 . . . . . . . . . . 3 4 1 . . . . . . . . Heat Transferred 9243 | . 200 100 775 . 185 1390 727 70 . 185 . . 1355 1250 944 1075 . . . . . . 987 Parts Sabotaged . | . . . . . . . . . . . . . . . . . . . . . . . . Parts Stolen . | . . . . . . . . . . . . . . . . . . . . . . . . Parts Stripped . | . . . . . . . . . . . . . . . . . . . . . . . . Power Chain Reactions 6 | . 4 1 . . . . . . . . . . . . . . . . . . . . 1 Missiles Intercepted . | . . . . . . . . . . . . . . . . . . . . . . . . Alert | -11 -10 -10 -9 -9 -9 -8 -8 -7 -7 -7 -7 -6 -6 -6 -6 -6 -5 -5 -5 -5 -4 -4 -4 ------- Run | Scr Mat Min Mat Sto Gar Mat Gar Fac Low Low Dat Pro Fac Gar Fac Gar Fac Gar Fac Gar Fac Was Fac Peak Influence 969 | . 227 189 302 219 437 497 487 342 . . . . 555 617 402 368 267 449 544 586 307 111 969 Initial 330 | . . 16 22 47 72 212 89 255 . . . . 30 330 318 82 193 60 235 315 307 107 . Average 216 | . 62 65 150 82 233 277 298 241 . . . . 162 471 250 239 139 317 350 503 307 54 331 Maximum Alert Level 3 | . 1 . 1 1 2 2 2 1 . . . . 2 2 2 1 1 2 2 2 1 . 3 Low Security (%) 53 | 100 98 100 73 95 52 22 44 44 . . . . 68 . 22 49 84 18 . . . 100 41 Level 1 30 | . 1 . 26 4 29 62 18 55 . . . . 21 41 75 50 15 37 67 22 100 . 22 Level 2 14 | . . . . . 18 14 36 . . . . . 9 58 1 . . 43 31 77 . . 26 Level 3 . | . . . . . . . . . . . . . . . . . . . . . . . 9 Level 4 . | . . . . . . . . . . . . . . . . . . . . . . . . Level 5 . | . . . . . . . . . . . . . . . . . . . . . . . . High Security . | . . . . . . . . . . . . . . . . . . . . . . . . Max Security . | . . . . . . . . . . . . . . . . . . . . . . . . Squads Dispatched 39 | . 4 . 1 3 . 5 . . . 1 . . 4 . 1 . 3 . 3 . . . 14 Investigation 8 | . 3 . . 1 . . . . . . . . . . . . 1 . 1 . . . 2 Extermination 8 | . . . . . . . . . . . . . 1 . . . 2 . 2 . . . 3 Reinforcement 16 | . 1 . 1 . . 1 . . . . . . 3 . 1 . . . . . . . 9 Assault 1 | . . . . . . . . . . 1 . . . . . . . . . . . . . Garrison 6 | . . . . 2 . 4 . . . . . . . . . . . . . . . . . Intercept . | . . . . . . . . . . . . . . . . . . . . . . . . Construction Impeded 4 | . . . . . . . . . . . . . . . . . . . . . . . 4 Haulers Reinforced 2 | . . . . . . . . . . . . . 1 . . . . . . . . . 1 Cargo Convoy Interrupts 1 | . . . . . . . . . . . . . 1 . . . . . . . . . . Stealth | -11 -10 -10 -9 -9 -9 -8 -8 -7 -7 -7 -7 -6 -6 -6 -6 -6 -5 -5 -5 -5 -4 -4 -4 --------- Run | Scr Mat Min Mat Sto Gar Mat Gar Fac Low Low Dat Pro Fac Gar Fac Gar Fac Gar Fac Gar Fac Was Fac Distress Signals 13 | . . . 3 1 . . . . . . . . 1 . . . . . 1 . . . 7 Communications Jammed 71 | . . . . . . . . . . . . . . . 32 . 26 . 13 . . . . Distress Signals 70 | . . . . . . . . . . . . . . . 32 . 25 . 13 . . . . Times Spotted 362 | . 21 12 18 18 12 25 18 4 3 12 . 2 16 15 11 15 20 31 28 10 1 . 70 Peak Tracking Total 17 | . 4 2 4 5 5 4 7 1 4 11 . 1 4 5 3 5 8 5 4 5 1 . 17 Tactical Retreats 18 | . . 1 . . 1 3 . . . 1 . . . 1 . 1 1 . 1 1 . . 7 Traps | -11 -10 -10 -9 -9 -9 -8 -8 -7 -7 -7 -7 -6 -6 -6 -6 -6 -5 -5 -5 -5 -4 -4 -4 ------- Run | Scr Mat Min Mat Sto Gar Mat Gar Fac Low Low Dat Pro Fac Gar Fac Gar Fac Gar Fac Gar Fac Was Fac Traps Triggered 24 | . 1 . 1 . 1 . 2 1 . 1 . . . 2 . 6 1 4 . . 1 . 3 Indirectly . | . . . . . . . . . . . . . . . . . . . . . . . . Trap Hack Attempts 111 | . . . 9 17 . . . . . . . . . . 85 . . . . . . . . Triggered . | . . . . . . . . . . . . . . . . . . . . . . . . Disarmed 7 | . 6 . . . . . . . . . . . . . 1 . . . . . . . . Reprogrammed 11 | . 4 . 2 1 . . . . . . . . . . 4 . . . . . . . . Reused 2 | . . . . . . . . . . . . . . . 2 . . . . . . . . Traps Extracted . | . . . . . . . . . . . . . . . . . . . . . . . . Installed . | . . . . . . . . . . . . . . . . . . . . . . . . Triggered 3 | . . . . . . . . . . . . . 1 . 2 . . . . . . . . Machines | -11 -10 -10 -9 -9 -9 -8 -8 -7 -7 -7 -7 -6 -6 -6 -6 -6 -5 -5 -5 -5 -4 -4 -4 ---------- Run | Scr Mat Min Mat Sto Gar Mat Gar Fac Low Low Dat Pro Fac Gar Fac Gar Fac Gar Fac Gar Fac Was Fac Machines Disabled 19 | . . . . 1 2 . 1 . . . . . 1 . . . 1 1 2 . . . 10 Max in Single Turn 4 | . . . . 1 1 . 1 . . . . . . . . . 1 1 1 . . . 4 Garrison Access 1 | . . . . . . . . . . . . . . . 1 . . . . . . . . Garrison Relay 4 | . . . . . 2 . 1 . . . . . . . . . . 1 . . . . . Machines Sabotaged . | . . . . . . . . . . . . . . . . . . . . . . . . Garrisons Compromised 1 | . . . . . . . . . . . . . 1 . . . . . . . . . . Overloaded Fab Kills 5 | . . . . . . . . . . . . . . . . . . . . . . . 5 Fab Network Shutdowns . | . . . . . . . . . . . . . . . . . . . . . . . . Hacking | -11 -10 -10 -9 -9 -9 -8 -8 -7 -7 -7 -7 -6 -6 -6 -6 -6 -5 -5 -5 -5 -4 -4 -4 --------- Run | Scr Mat Min Mat Sto Gar Mat Gar Fac Low Low Dat Pro Fac Gar Fac Gar Fac Gar Fac Gar Fac Was Fac Machines Accessed 61 | . 11 . 5 4 . 7 . 3 3 1 3 . 4 . 3 . 5 . 7 . . . 5 Terminals 29 | . 8 . 3 2 . 5 . 1 . . . . 3 . 1 . 2 . 1 . . . 3 Fabricators 4 | . . . . . . . . . . . . . . . . . . . 3 . . . 1 Repair Stations 7 | . 1 . 1 . . 1 . 1 . . . . . . . . 1 . 1 . . . 1 Recycling Units 4 | . 2 . . 1 . . . 1 . . . . . . . . . . . . . . . Scanalyzers 3 | . . . 1 . . . . . . . . . . . . . 1 . 1 . . . . Garrison Access 7 | . . . . 1 . 1 . . . . . . 1 . 2 . 1 . 1 . . . . Total Hacks 194 | . 41 . 22 14 . 19 . 6 5 10 21 . 9 . 7 . 15 . 14 . . . 11 Successful 121 | . 22 . 15 7 . 11 . 3 5 10 21 . 5 . 3 . 9 . 7 . . . 3 Failed 73 | . 19 . 7 7 . 8 . 3 . . . . 4 . 4 . 6 . 7 . . . 8 Catastrophic 9 | . 2 . 1 . . 2 . . . . . . 1 . . . . . 1 . . . 2 Database Lockouts . | . . . . . . . . . . . . . . . . . . . . . . . . Manual 73 | . 13 . 7 12 . 14 . 2 . . . . 5 . 4 . 9 . 4 . . . 3 Terminals 85 | . 25 . 11 9 . 14 . 3 . . . . 8 . 2 . 6 . 1 . . . 6 Fabricators 8 | . . . . . . . . . . . . . . . . . . . 5 . . . 3 Repair Stations 26 | . 9 . 5 . . 2 . 2 . . . . . . . . 3 . 3 . . . 2 Recycling Units 10 | . 7 . . 2 . . . 1 . . . . . . . . . . . . . . . Scanalyzers 12 | . . . 6 . . . . . . . . . . . . . 3 . 3 . . . . Garrison Access 17 | . . . . 3 . 3 . . . . . . 1 . 5 . 3 . 2 . . . . Terminal Hacks 58 | . 9 . 4 1 . 4 . 1 5 10 21 . 2 . . . . . . . . . 1 Record 19 | . . . . . . . . . 3 10 6 . . . . . . . . . . . . Part Schematic 5 | . . . . . . . . . . . 5 . . . . . . . . . . . . Robot Schematic 7 | . . . . . . . . . . . 7 . . . . . . . . . . . . Robot Analysis 4 | . 2 . 1 . . 1 . . . . . . . . . . . . . . . . . Prototype ID Bank 4 | . 1 . . . . . . . . . 3 . . . . . . . . . . . . Open Door 2 | . . . . . . . . . 2 . . . . . . . . . . . . . . Branch Access Points 2 | . . . 1 . . . . 1 . . . . . . . . . . . . . . . Terminal Index 1 | . . . . . . . . . . . . . . . . . . . . . . . 1 Unreport Threat 5 | . 2 . . . . 2 . . . . . . 1 . . . . . . . . . . Locate Traps 1 | . 1 . . . . . . . . . . . . . . . . . . . . . . Disarm Traps 1 | . 1 . . . . . . . . . . . . . . . . . . . . . . Reprogram Traps 1 | . 1 . . . . . . . . . . . . . . . . . . . . . . Hauler Manifests 1 | . . . . . . . . . . . . . 1 . . . . . . . . . . Registered Components 1 | . . . 1 . . . . . . . . . . . . . . . . . . . . Zone Layout 4 | . 1 . 1 1 . 1 . . . . . . . . . . . . . . . . . Fabricator Hacks 1 | . . . . . . . . . . . . . . . . . . . 1 . . . . Build 1 | . . . . . . . . . . . . . . . . . . . 1 . . . . Repair Station Hacks 18 | . 8 . 3 . . 2 . . . . . . . . . . 2 . 2 . . . 1 Scan Component 9 | . 4 . 2 . . 1 . . . . . . . . . . 1 . 1 . . . . Repair 8 | . 4 . 1 . . 1 . . . . . . . . . . 1 . 1 . . . . Refit 1 | . . . . . . . . . . . . . . . . . . . . . . . 1 Recycling Unit Hacks 4 | . 2 . . 1 . . . 1 . . . . . . . . . . . . . . . Retrieve Components 4 | . 2 . . 1 . . . 1 . . . . . . . . . . . . . . . Scanalyzer 12 | . . . 6 . . . . . . . . . . . . . 3 . 3 . . . . Insert Component 7 | . . . 3 . . . . . . . . . . . . . 2 . 2 . . . . Analyze 5 | . . . 3 . . . . . . . . . . . . . 1 . 1 . . . . Garrison Access Hacks 8 | . . . . 1 . 1 . . . . . . 1 . 3 . 1 . 1 . . . . Unlock Access 6 | . . . . 1 . 1 . . . . . . 1 . 1 . 1 . 1 . . . . Seal Access 1 | . . . . . . . . . . . . . . . 1 . . . . . . . . Coupler Status 1 | . . . . . . . . . . . . . . . 1 . . . . . . . . Unauthorized Hacks 20 | . 3 . 2 4 . 4 . 1 . . . . 2 . . . 3 . . . . . 1 Terminals 14 | . 1 . 2 3 . 3 . 1 . . . . 2 . . . 2 . . . . . . Track 3 | . . . 1 1 . . . . . . . . . . . . 1 . . . . . . Botnet 10 | . 1 . . 2 . 3 . 1 . . . . 2 . . . 1 . . . . . . Disrupt 1 | . . . 1 . . . . . . . . . . . . . . . . . . . . Fabricators 1 | . . . . . . . . . . . . . . . . . . . . . . . 1 Overload 1 | . . . . . . . . . . . . . . . . . . . . . . . 1 Repair Stations 1 | . . . . . . . . . . . . . . . . . 1 . . . . . . Mechanics 1 | . . . . . . . . . . . . . . . . . 1 . . . . . . Recycling Units 3 | . 2 . . 1 . . . . . . . . . . . . . . . . . . . Mask 1 | . . . . 1 . . . . . . . . . . . . . . . . . . . Tunnel 2 | . 2 . . . . . . . . . . . . . . . . . . . . . . Scanalyzers . | . . . . . . . . . . . . . . . . . . . . . . . . Garrison Access 1 | . . . . . . 1 . . . . . . . . . . . . . . . . . Reprogram 1 | . . . . . . 1 . . . . . . . . . . . . . . . . . Data Cores Recovered . | . . . . . . . . . . . . . . . . . . . . . . . . Used . | . . . . . . . . . . . . . . . . . . . . . . . . Hacking Detections 49 | . 10 . 4 3 . 6 . 2 . . . . 4 . 3 . 5 . 7 . . . 5 Full Trace Events 8 | . 2 . 1 1 . 1 . . . . . . . . . . 1 . 1 . . . 1 Feedback Events 1 | . . . . . . 1 . . . . . . . . . . . . . . . . . Corruption 1 | . . . . . . 1 . . . . . . . . . . . . . . . . . Feedback Blocked . | . . . . . . . . . . . . . . . . . . . . . . . . Robot Schematics Acquired 7 | . . . . . . . . . . . 7 . . . . . . . . . . . . Robots Built 1 | . . . . . . . . . . . . . . . . . . . 1 . . . . Matter 285 | . . . . . . . . . . . . . . . . . . . 285 . . . . Time 152 | . . . . . . . . . . . . . . . . . . . 152 . . . . Total Robot Build Rating 5 | . . . . . . . . . . . . . . . . . . . 5 . . . . Part Schematics Acquired 10 | . . . 3 . . . . . . . 5 . . . . . 1 . 1 . . . . Parts Built . | . . . . . . . . . . . . . . . . . . . . . . . . Matter . | . . . . . . . . . . . . . . . . . . . . . . . . Time . | . . . . . . . . . . . . . . . . . . . . . . . . Total Part Build Rating . | . . . . . . . . . . . . . . . . . . . . . . . . Parts Repaired 8 | . 4 . 1 . . 1 . . . . . . . . . . 1 . 1 . . . . Time 244 | . 114 . 26 . . 26 . . . . . . . . . . 50 . 28 . . . . Parts Recycled . | . . . . . . . . . . . . . . . . . . . . . . . . Recycled Matter . | . . . . . . . . . . . . . . . . . . . . . . . . Retrieved Matter . | . . . . . . . . . . . . . . . . . . . . . . . . Retrieved Components 14 | . 11 . . 2 . . . 1 . . . . . . . . . . . . . . . Parts Scanalyzed 5 | . . . 3 . . . . . . . . . . . . . 1 . 1 . . . . Part Schematics Acquired 5 | . . . 3 . . . . . . . . . . . . . 1 . 1 . . . . Parts Damaged . | . . . . . . . . . . . . . . . . . . . . . . . . Bothacking | -11 -10 -10 -9 -9 -9 -8 -8 -7 -7 -7 -7 -6 -6 -6 -6 -6 -5 -5 -5 -5 -4 -4 -4 ------------ Run | Scr Mat Min Mat Sto Gar Mat Gar Fac Low Low Dat Pro Fac Gar Fac Gar Fac Gar Fac Gar Fac Was Fac Used RIF Installer 5 | . . . . . 1 . 1 . . . . . . 1 . 1 . 1 . . . . . Hotswap 1 | . . . . . . . 1 . . . . . . . . . . . . . . . . Zone Cloak 1 | . . . . . . . . . . . . . . . . . . 1 . . . . . Robot Detection 1 | . . . . . . . . . . . . . . 1 . . . . . . . . . Watcher Feeds 1 | . . . . . . . . . . . . . . . . 1 . . . . . . . Robots Hacked 22 | . . . . . . . . 5 1 . . . . . . . 2 9 1 2 . . 2 Non-combat 7 | . . . . . . . . 5 . . . . . . . . 2 . . . . . . Combat 15 | . . . . . . . . . 1 . . . . . . . . 9 1 2 . . 2 Robot Hacks Applied 25 | . . . . . . . . 6 1 . . . . . . . 2 10 1 2 . . 3 no_distress 1 | . . . . . . . . 1 . . . . . . . . . . . . . . . generate_echo 1 | . . . . . . . . 1 . . . . . . . . . . . . . . . map_earth 1 | . . . . . . . . 1 . . . . . . . . . . . . . . . drop_inventory 1 | . . . . . . . . . . . . . . . . . 1 . . . . . . amplify_resonance 4 | . . . . . . . . . . . . . . . . . . 3 . . . . 1 wipe_record 1 | . . . . . . . . . . . . . . . . . . 1 . . . . . reboot_system 2 | . . . . . . . . . . . . . . . . . . . . 1 . . 1 overwrite_iff 8 | . . . . . . . . . . . . . . . . . . 5 1 1 . . 1 streamctrl_low 1 | . . . . . . . . 1 . . . . . . . . . . . . . . . formatsys_low 3 | . . . . . . . . 2 . . . . . . . . 1 . . . . . . formatsys_high 2 | . . . . . . . . . 1 . . . . . . . . 1 . . . . . Relay Couplers Released 13 | . . . . . 7 . 3 . . . . . . . . . . 3 . . . . . Machine Destruction 13 | . . . . . 7 . 3 . . . . . . . . . . 3 . . . . . Attached 9 | . . . . . . . . 1 1 . . . . 1 . . 1 3 1 . . . 1 Robots Rewired 4 | . . 1 . . . . . . . 2 . . . 1 . . . . . . . . . Allies Hacked . | . . . . . . . . . . . . . . . . . . . . . . . . Hacks Repelled . | . . . . . . . . . . . . . . . . . . . . . . . . Allies | -11 -10 -10 -9 -9 -9 -8 -8 -7 -7 -7 -7 -6 -6 -6 -6 -6 -5 -5 -5 -5 -4 -4 -4 -------- Run | Scr Mat Min Mat Sto Gar Mat Gar Fac Low Low Dat Pro Fac Gar Fac Gar Fac Gar Fac Gar Fac Was Fac Total Allies 41 | . . 4 . . . 1 . 2 1 2 . 1 18 1 . . 1 6 2 1 . . 1 Largest Group 16 | . . 3 1 . . . 1 2 3 3 2 3 16 1 1 . 1 2 1 1 . . . Highest-Rated Group 631 | . . 40 16 . . . 15 33 62 62 52 147 631 12 12 . 14 29 41 41 . . . Highest-Rated Ally 95 | . . 16 16 . . . 15 23 29 32 32 95 95 12 12 . 14 29 41 41 . . . Total Orders 20 | . . . . . . . . 6 4 7 . . . . . . 1 . 2 . . . . STAY 8 | . . . . . . . . 3 2 3 . . . . . . . . . . . . . ROAM 1 | . . . . . . . . . . . . . . . . . . . 1 . . . . FOLLOW 8 | . . . . . . . . 2 2 3 . . . . . . . . 1 . . . . AID 3 | . . . . . . . . 1 . 1 . . . . . . 1 . . . . . . Ally Attacks 124 | . . 29 2 . . . 5 . 6 1 . 7 44 1 2 . . 21 3 2 . . 1 Total Damage 2679 | . . 317 13 . . . 102 . 112 . . 258 1411 15 27 . . 245 99 40 . . 40 Kills 24 | . . 5 1 . . . 1 . 1 . . 1 12 . . . . 2 1 . . . . Allies Corrupted . | . . . . . . . . . . . . . . . . . . . . . . . . Allies Melted . | . . . . . . . . . . . . . . . . . . . . . . . . Intel | -11 -10 -10 -9 -9 -9 -8 -8 -7 -7 -7 -7 -6 -6 -6 -6 -6 -5 -5 -5 -5 -4 -4 -4 ------- Run | Scr Mat Min Mat Sto Gar Mat Gar Fac Low Low Dat Pro Fac Gar Fac Gar Fac Gar Fac Gar Fac Was Fac Robot Analysis Total 4 | . 2 . 1 . . 1 . . . . . . . . . . . . . . . . . Derelict Logs Recovered 7 | . . 2 . . . . . . 1 2 . 2 . . . . . . . . . . . Drone Launches . | . . . . . . . . . . . . . . . . . . . . . . . . Drone Recoveries . | . . . . . . . . . . . . . . . . . . . . . . . . Exploration | -11 -10 -10 -9 -9 -9 -8 -8 -7 -7 -7 -7 -6 -6 -6 -6 -6 -5 -5 -5 -5 -4 -4 -4 ------------- Run | Scr Mat Min Mat Sto Gar Mat Gar Fac Low Low Dat Pro Fac Gar Fac Gar Fac Gar Fac Gar Fac Was Fac Turns Passed 21637 | 77 1525 1074 868 861 377 1301 892 721 2618 1568 137 531 881 448 969 574 1372 1061 1376 351 82 787 1186 Spaces Moved 9936 | 43 729 593 357 244 177 378 358 396 1316 861 77 289 519 165 352 212 541 329 666 122 32 424 756 Core 440 | 3 . . . . . . . . . . . . . . . . . . . . . . 437 Treads 4875 | 40 729 593 357 244 177 378 358 396 359 . . . . 14 111 87 . 45 216 122 . 373 276 Legs 495 | . . . . . . . . . . . . . . . . . 495 . . . . . . Wheels 4083 | . . . . . . . . . 957 861 77 289 519 151 241 125 46 284 450 . 32 51 . Hover 43 | . . . . . . . . . . . . . . . . . . . . . . . 43 Flight . | . . . . . . . . . . . . . . . . . . . . . . . . Fastest Speed 50 | 50 160 160 160 160 160 160 160 160 160 150 180 180 135 165 135 150 115 135 135 165 255 160 50 Average Speed 167 | 152 160 160 160 167 176 199 197 160 190 166 180 180 135 181 189 193 194 162 148 206 255 171 95 Slowest Speed 280 | 160 160 160 160 260 260 260 260 260 260 180 180 180 165 265 275 260 280 262 266 266 255 255 260 Overloaded Moves . | . . . . . . . . . . . . . . . . . . . . . . . . Propulsion Burnouts . | . . . . . . . . . . . . . . . . . . . . . . . . Robots Hopped . | . . . . . . . . . . . . . . . . . . . . . . . . Cave-ins Triggered 4 | . . . . . . . . . . 1 . . . . . . . . . 3 . . . Exploration Rate (%) 43 | 4 97 92 36 48 43 29 51 6 97 86 69 57 17 29 10 44 15 39 13 21 2 97 32 Regions Visited 23 Branch Regions 6 Pre-discovered Areas 5 | . 2 . . . . . . . 1 1 1 . . . . . . . . . . . . Known Exits Taken 13 | . . 1 1 1 . 1 . 1 1 1 1 1 1 . 1 . 1 . 1 . . . . Unknown Exits Taken 2 | 1 1 . . . . . . . . . . . . . . . . . . . . . . Scrap Searched 9 | . . 1 . . . . . . 4 2 . 2 . . . . . . . . . . . Spaces Dug 29 | . . 2 1 . . 2 . . . 3 . . 4 . 2 . 1 . 3 7 . . 4 Terrain Destroyed 378 | . 29 6 1 . . 2 . . . 3 . . 5 25 3 29 29 9 34 67 . 5 131 Melee 24 | . . 2 1 . . 2 . . . 3 . . 4 . 2 . 1 . 3 3 . . 3 Projectile 80 | . . . . . . . . . . . . . 1 . 1 2 4 8 17 19 . 5 23 AOE 273 | . 29 4 . . . . . . . . . . . 25 . 27 24 . 14 45 . . 105 Terrain Rammed 10 | . . . . . . . . . . . . . . . . . . . . . . . 10 Walls Destroyed . | . . . . . . . . . . . . . . . . . . . . . . . . Machines Disabled . | . . . . . . . . . . . . . . . . . . . . . . . . Actions | -11 -10 -10 -9 -9 -9 -8 -8 -7 -7 -7 -7 -6 -6 -6 -6 -6 -5 -5 -5 -5 -4 -4 -4 --------- Run | Scr Mat Min Mat Sto Gar Mat Gar Fac Low Low Dat Pro Fac Gar Fac Gar Fac Gar Fac Gar Fac Was Fac Total 13534 | 52 974 672 595 617 214 823 429 465 1385 944 76 298 648 253 566 310 782 694 964 182 34 466 1091 Wait 2005 | . 147 49 161 283 4 364 5 37 18 14 . 6 72 32 25 34 141 210 190 28 . 6 179 Move 9915 | 42 728 592 356 244 176 378 357 395 1315 860 76 288 519 164 351 210 541 328 665 119 32 423 756 Hop . | . . . . . . . . . . . . . . . . . . . . . . . . Pick Up 147 | 4 18 2 12 4 8 7 3 2 4 5 . . 5 9 7 9 13 12 7 . . 6 10 Fast Attach 102 | 6 5 . 4 2 . 4 . 2 5 5 . . 6 1 15 3 9 12 8 1 . 5 9 Attach 80 | . 2 . 2 4 2 5 3 2 1 3 . . 1 5 7 7 9 7 2 4 1 . 13 Detach 25 | . . . 2 1 . . . . 2 2 . . . . 9 . 2 2 2 . . 1 2 Swap 178 | . 4 4 9 3 6 8 4 11 9 4 . 2 8 10 15 5 15 11 21 6 1 4 18 Drop 137 | . 6 2 9 6 2 8 2 4 8 6 . 1 10 1 13 1 13 9 14 . . 12 10 Fire 622 | . 56 17 29 . 9 43 49 4 21 23 . 1 22 25 36 27 35 79 49 15 . 9 73 Melee 103 | . 1 6 1 53 5 3 1 6 1 3 . . 4 . 2 . 3 . 4 7 . . 3 Ram 12 | . . . . . . . . . . . . . 1 . . . . . . . . . 11 Kick . | . . . . . . . . . . . . . . . . . . . . . . . . Crush 13 | . 4 . 1 . . 3 . . . . . . . . 1 . . 1 2 . . . 1 Escape Stasis 51 | . . . . . 2 . 4 . . . . . . . . 14 . 23 . 2 . . 6 Rewire 33 | . 3 . . . . . 1 2 1 19 . . . 6 . . 1 . . . . . . Trap 111 | . . . 9 17 . . . . . . . . . . 85 . . . . . . . . Miscellaneous . | . . . . . . . . . . . . . . . . . . . . . . . . Route ------- -11/Scrapyard -10/Materials (discovered 5 exits: *Mat x3 / [*Min x2]) -10/Mines (discovered 2 exits: *Mat x2) -9/Materials (discovered 5 exits: *Mat x2 / Min / *Sto x2) -9/Storage -9/Garrison -8/Materials -8/Garrison (discovered 2 exits: *Fac x2) -7/Factory (discovered 2 exits: *Low x2) -7/Lower Caves -7/Lower Caves (discovered 2 exits: Fac / *Dat) -7/Data Miner -6/Proximity Caves -6/Factory (discovered 8 exits: *Fac x4 / *Low x2 / Ext / Gar) -6/Garrison -6/Factory (discovered 2 exits: *Fac / Gar) -6/Garrison -5/Factory -5/Garrison -5/Factory -5/Garrison -4/Factory -4/Waste -4/Factory History --------- Turn | Location | Event 4 | -11/Scrapyard | Discovered new exit (range 15) 78 | -11/Scrapyard | Entered Materials 305 | -10/Materials | Build established: Mutant 386 | -10/Materials | Discovered new exit (range 8) 831 | -10/Materials | Discovered new exit (range 10) 1027 | -10/Materials | Discovered new exit (range 12) 1083 | -10/Materials | Discovered new exit (range 15) 1161 | -10/Materials | Repaired Lgt. Treads 1189 | -10/Materials | Repaired Lgt. Treads 1216 | -10/Materials | Repaired EM Pulse Gun 1254 | -10/Materials | Repaired Corrupted Lgt. Treads 1352 | -10/Materials | Discovered new exit (range 8) 1603 | -10/Materials | Entered Mines 1737 | -10/Mines | Assisted by bots powering up and referring to "LRC-V3" 1795 | -10/Mines | Discovered new exit (range 7) 1867 | -10/Mines | Identified exit to Materials 2092 | -10/Mines | Excavation squad dispatched 2092 | -10/Mines | A large section of the Mines collapsed 2425 | -10/Mines | Learned location of 1 exit from Materials 2677 | -10/Mines | Entered Materials 2677 | -9/Materials | Accompanied by 1 ally 2677 | -9/Materials | Evolved 2 slots: Propulsion x1, Utility x1 2678 | -9/Materials | Identified exit to Materials 2743 | -9/Materials | Identified exit to Mines 2743 | -9/Materials | Identified exit to Storage 3035 | -9/Materials | Repaired Lgt. Treads 3223 | -9/Materials | Discovered exit to Materials (range 8) 3545 | -9/Materials | Entered Storage 3621 | -9/Storage | Build established: Scavenger-Mutant 4305 | -9/Storage | Garrison activated, responded to threat 4380 | -9/Storage | Lost 4 parts (2n2u) 4401 | -9/Storage | Identified exit to Garrison 4406 | -9/Storage | Entered Garrison 4419 | -9/Garrison | Installed Relay Interface Framework 4478 | -9/Garrison | Triggered checkpoint 4530 | -9/Garrison | Garrison Relay disabled 4605 | -9/Garrison | Triggered checkpoint 4607 | -9/Garrison | Triggered checkpoint 4641 | -9/Garrison | Build established: Mutant 4686 | -9/Garrison | Triggered checkpoint 4715 | -9/Garrison | Garrison Relay disabled 4761 | -9/Garrison | Discovered exit to Materials (range 15) 4783 | -9/Garrison | Entered Materials 4783 | -8/Materials | Evolved 2 slots: Utility x1, Weapon x1 5000 | -8/Materials | Build established: Bothacker-Mutant 5482 | -8/Materials | Build established: Bothacker-Skirmisher 5516 | -8/Materials | Garrison activated, responded to threat 5613 | -8/Materials | Repaired Lgt. Treads 5798 | -8/Materials | Build established: Bothacker-Tank 6082 | -8/Materials | Identified exit to Garrison 6084 | -8/Materials | Entered Garrison 6084 | -8/Garrison | Accompanied by 1 ally 6196 | -8/Garrison | Triggered checkpoint 6197 | -8/Garrison | Triggered checkpoint 6347 | -8/Garrison | Discovered new exit (range 13) 6376 | -8/Garrison | Identified exit to Factory 6588 | -8/Garrison | Triggered checkpoint 6639 | -8/Garrison | Discovered exit to Factory (range 15) 6704 | -8/Garrison | Expanded RIF knowledge: Hotswap 6782 | -8/Garrison | Garrison Relay disabled 6976 | -8/Garrison | Entered Factory 6976 | -7/Factory | Evolved 2 slots: Utility x2 7130 | -7/Factory | Identified exit to Lower Caves 7660 | -7/Factory | Build established: Bothacker-Mutant 7697 | -7/Factory | Entered Lower Caves 7697 | -7/Lower Caves | Accompanied by 2 allies 7983 | -7/Lower Caves | Build established: Bothacker-Tank 8353 | -7/Lower Caves | Build established: Scavenger-Skirmisher 8887 | -7/Lower Caves | Learned location of 1 exit from Factory 8964 | -7/Lower Caves | Build established: Skirmisher 9129 | -7/Lower Caves | Encountered a Warlord checkpoint 9321 | -7/Lower Caves | Learned location of Armory (-3) 9321 | -7/Lower Caves | Learned location of 1 exit from Factory 9321 | -7/Lower Caves | Learned Factory trap positions 9582 | -7/Lower Caves | Destroyed LH-XY3(g) 9894 | -7/Lower Caves | Build established: Scavenger-Mutant 10039 | -7/Lower Caves | Discovered new exit (range 11) 10054 | -7/Lower Caves | Identified exit to Lower Caves 10274 | -7/Lower Caves | Build established: Scavenger-Skirmisher 10315 | -7/Lower Caves | Entered another Lower Caves area 10315 | -7/Lower Caves | Accompanied by 3 allies 10738 | -7/Lower Caves | Encountered a Warlord checkpoint 10815 | -7/Lower Caves | Learned location of 1 exit from Factory 10871 | -7/Lower Caves | Learned Factory trap positions 11323 | -7/Lower Caves | Crushed by falling debris 11329 | -7/Lower Caves | Attracted the attention of an 0b10 outpost 11400 | -7/Lower Caves | Destroyed 7 combat bots 11407 | -7/Lower Caves | Lost 3 parts (1n2u) 11500 | -7/Lower Caves | Discovered new exit (range 6) 11639 | -7/Lower Caves | Identified exit to Factory 11639 | -7/Lower Caves | Learned location of 1 exit from Research 11639 | -7/Lower Caves | Learned Extension stockpile data 11639 | -7/Lower Caves | Learned Research security intel 11639 | -7/Lower Caves | Learned Factory terminal intel 11639 | -7/Lower Caves | Learned Research garrison access intel 11877 | -7/Lower Caves | Identified exit to Data Miner 11883 | -7/Lower Caves | Entered Data Miner 11883 | -7/Data Miner | Accompanied by 2 allies 11883 | -7/Data Miner | Discovered new exit (range 7) 11918 | -7/Data Miner | Met Data Miner 11954 | -7/Data Miner | Learned location of Section 7 (-2) 11954 | -7/Data Miner | Acquired the access code to Warlord's prototype stash 11981 | -7/Data Miner | Received God Mode back door access code from Data Miner 12018 | -7/Data Miner | Identified exit to Proximity Caves 12020 | -7/Data Miner | Entered Proximity Caves 12020 | -6/Proximity Caves | Accompanied by 2 allies 12136 | -6/Proximity Caves | Learned location of 1 exit from Factory 12145 | -6/Proximity Caves | Learned location of 1 exit from Proximity Caves 12444 | -6/Proximity Caves | Escorted by Enhanced Grunt 12551 | -6/Proximity Caves | Entered Factory 12551 | -6/Factory | Accompanied by 2 allies 12551 | -6/Factory | Evolved 2 slots: Power x1, Propulsion x1 12552 | -6/Factory | Identified exit to Factory 12553 | -6/Factory | Identified exit to Lower Caves 12553 | -6/Factory | Identified exit to Extension 12554 | -6/Factory | Loaded intel: 73 trap records 12555 | -6/Factory | Loaded intel: 22 terminal locations 12991 | -6/Factory | Build established: Bothacker-Tank 13283 | -6/Factory | Discovered exit to Factory (range 14) 13344 | -6/Factory | Cargo convoy interrupted 13367 | -6/Factory | Incoming assault squad redirected 13371 | -6/Factory | Found Prototype Launcher 13371 | -6/Factory | Identified Rocket Array 13432 | -6/Factory | Identified exit to Garrison 13432 | -6/Factory | Entered Garrison 13441 | -6/Garrison | Expanded RIF knowledge: Robot Detection 13605 | -6/Garrison | Triggered checkpoint 13648 | -6/Garrison | Triggered checkpoint 13699 | -6/Garrison | Lost 3 parts (1p1n1u) 13852 | -6/Garrison | Discovered new exit (range 8) 13873 | -6/Garrison | Identified exit to Factory 13880 | -6/Garrison | Entered Factory 13880 | -6/Factory | Accompanied by 1 ally 13881 | -6/Factory | Loaded intel: 103 trap records 13945 | -6/Factory | Build established: Scavenger-Tank 14387 | -6/Factory | Build established: Bothacker-Tank 14511 | -6/Factory | Spotted B-75 Beast 14563 | -6/Factory | Destroyed B-75 Beast 14700 | -6/Factory | Discovered exit to Factory (range 8) 14769 | -6/Factory | Lost 4 parts (1p1n1u1w) 14789 | -6/Factory | Found Prototype Processor 14789 | -6/Factory | Identified Exp. Targeting Computer 14827 | -6/Factory | Identified exit to Garrison 14849 | -6/Factory | Entered Garrison 14862 | -6/Garrison | Expanded RIF knowledge: Watcher Feeds 14924 | -6/Garrison | Triggered checkpoint 15031 | -6/Garrison | Spotted B-75 Beast 15132 | -6/Garrison | Destroyed B-75 Beast 15157 | -6/Garrison | Build established: Bothacker-Gunner 15186 | -6/Garrison | Triggered checkpoint 15191 | -6/Garrison | Triggered checkpoint 15239 | -6/Garrison | Destroyed 7 combat bots 15241 | -6/Garrison | Lost 6 parts (1p2n1u2w) 15406 | -6/Garrison | Discovered exit to Factory (range 10) 15423 | -6/Garrison | Entered Factory 15423 | -5/Factory | Evolved 2 slots: Propulsion x1, Utility x1 15497 | -5/Factory | Build established: Scavenger-Gunner 15640 | -5/Factory | Repaired Adv. Heat Sink 16795 | -5/Factory | Identified exit to Garrison 16795 | -5/Factory | Entered Garrison 16810 | -5/Garrison | Lost 3 parts (3n) 16832 | -5/Garrison | Triggered checkpoint 16887 | -5/Garrison | Garrison Relay disabled 17002 | -5/Garrison | Spotted B-75 Beast 17007 | -5/Garrison | Triggered checkpoint 17106 | -5/Garrison | Destroyed B-75 Beast 17120 | -5/Garrison | Lost 6 parts (2p2n1u1w) 17191 | -5/Garrison | Triggered checkpoint 17225 | -5/Garrison | Build established: Bothacker-Gunner 17252 | -5/Garrison | Triggered checkpoint 17269 | -5/Garrison | Triggered checkpoint 17786 | -5/Garrison | Discovered new exit (range 11) 17807 | -5/Garrison | Identified exit to Factory 17817 | -5/Garrison | Expanded RIF knowledge: Zone Cloak 17856 | -5/Garrison | Entered Factory 18132 | -5/Factory | Fabricated M-22 Extractor (x1) 18352 | -5/Factory | Build established: Bothacker-Tank 18603 | -5/Factory | Repaired Arm. Medium Treads 18668 | -5/Factory | Core integrity fell below 50% 18683 | -5/Factory | Incoming investigation squad redirected 18854 | -5/Factory | Build established: Bothacker-Gunner 19211 | -5/Factory | Identified exit to Garrison 19232 | -5/Factory | Entered Garrison 19366 | -5/Garrison | Destroyed 8 combat bots 19367 | -5/Garrison | Spotted B-75 Beast 19403 | -5/Garrison | Crushed by falling debris 19407 | -5/Garrison | Crushed by falling debris 19409 | -5/Garrison | Crushed by falling debris 19410 | -5/Garrison | Core integrity fell below 20% 19455 | -5/Garrison | Discovered new exit (range 9) 19479 | -5/Garrison | Identified exit to Factory 19583 | -5/Garrison | Entered Factory 19583 | -4/Factory | Evolved 2 slots: Propulsion x1, Utility x1 19665 | -4/Factory | Sucked down chute 19665 | -4/Factory | Entered Waste 19665 | -4/Waste | The area was eerily silent 19865 | -4/Waste | Build established: Bothacker-Tank 19923 | -4/Waste | Discovered new exit (range 16) 20227 | -4/Waste | Build established: Scavenger-Tank 20450 | -4/Waste | Identified exit to Factory 20452 | -4/Waste | Entered Factory 20582 | -4/Factory | Build established: Bothacker-Tank 21138 | -4/Factory | Lost 3 parts (2n1u) 21185 | -4/Factory | Build established: Scavenger-Gunner 21321 | -4/Factory | Released all parts (9) 21348 | -4/Factory | Lost 10 parts (2p2n4u2w) 21459 | -4/Factory | Incoming investigation squad redirected 21515 | -4/Factory | Spotted B-86 Titan 21561 | -4/Factory | Build established: Mutant 21587 | -4/Factory | Core integrity fell below 50% 21633 | -4/Factory | System corruption reached 10% 21634 | -4/Factory | Core integrity fell below 20% 21638 | -4/Factory | Destroyed self via exploding Power Conduit Last Messages --------------- 21634_ Adv. Medium Treads destroyed. 21634_ K-01 Serf cleans the Power Conduit. 21635_ Slammed into Power Conduit. 21635_ System Shield destroyed. 21635_ System corrupted by crushing effect (+3). 21635_ Destabilizing: System corrupted (+2). 21636_ Slammed into Power Conduit. 21638_ Power Conduit explodes. 21638_ S-27 Virus destroyed. 21638_ Destroyed Hpw. Shock Rifle. 21638_ Destroyed Antigrav System. 21638_ Power Conduit explodes. 21638_ Destroyed VTOL Module. 21638_ Power Conduit explodes. 21638_ Destroyed Com. Wheel. 21638_ Destroyed Wheel. 21638_ K-01 Serf destroyed. 21638_ Destroyed Lgt. Ion Engine. 21638_ Destroyed Autogun. 21638_ Destroyed VTOL Module. Map ----- +----------------------------------------------------+ | ?????????????????????????????????????????????????? | | ?????????????????????????????????????????????????? | | ?????????????????????????????????????????????????? | | ?????????????????????????????????????????????????? | | ?????????????????????????????????????????????????? | | ?????????????????????????????????????????????????? | | ?????????????????????????????????????????????????? | | ?????????????????????????????????????????????????? | | ?????????????????????????????????????????????????? | | ?????????????????????????????????????????????##### | | ?????????????????????????????????????????????# | | ?????????????????????????????????????????????? | | ?????????????????????????????????????????????# | | ?????????????????????# ??????????????????????# | | ?????????????????????# ?????##+#####?????# | | ????????????????????## k ??? #?????# ^ | | ????????????????????# ? #########+# | | ????????????????????# w | | ????????????????????# """"""""" % | | ????????????????????+ % | | ????????????????????# """"""""" % | | ????????????????????# k ? | | ????????????????????# #????###### | | ????????????????????# s #????? | | ????????????????????# R * #????# | | ????????????????????# p%@s s ###### | | ????????????????????# ! g # | | ???????????########## %*k # | | ??????????? """"""""" +? ? | | ?????????????????# #????? | | ?????????????????# #????? | | ?????????????????# ######+######## #????? | | ?????????????????# #????????????????????? | | ???????????####### #????????????????????? | | ???????????# #????????????????????? | | ???????????# #????????????????????? | | ???????????# """ #????????????????????? | | ???????????+ """ #????????????????????? | | ???????????# """ #????????????????????? | | ???????????# #????????????????????? | | ???????????# #????????????????????? | | ???????????# ####### ##????????????????????? | | ??#####+#### #?????? #?????????????????????? | | ??# #?????? #?????????????????????? | | ??# #?????? #?????????????????????? | | ??# #?????? ?????????????????????? | | ??# #??????? ?????????????????????? | | ??# #?????????????????????????????? | | ??# #?????????????????????????????? | | ??# #?????????????????????????????? | +----------------------------------------------------+ Best States ------------- Heat Dissipation 83 Coolant Potential 65 Energy Generation 37 Energy Capacity 515 Matter Stores 300 Matter Capacity 300 Sight Range 16 Robot Scan Range 15 Terrain Scan Density 10 Jamming Range 14 Armor Coverage 900 Resistance: KI 20 Resistance: TH 15 Resistance: EM 15 Core Shielding 30 Propulsion Shielding 66 Weapon Cycling 20 Phase Shifting 5 Evasion (%) 50 Target Analysis 6 Armor Integrity Analysis 20 Recoil Reduction 12 Kinecelleration 40 Salvage Targeting 4 Defensive Hacking 10 Relay Coupler Types 55 Relay Coupler Value 2 Item Schematics ----------------- Huge Storage Unit | -9/Materials | Scanalyzed Datajack | -9/Materials | Scanalyzed Arm. Wheel | -9/Materials | Scanalyzed Combat Drone Bay | -7/Data Miner | Free Lgt. Regenerative Plating | -7/Data Miner | Free Cmb. Gravmag System | -7/Data Miner | Free Exp. ECM Suite | -7/Data Miner | Free Plasma Sword | -7/Data Miner | Free Remote Datajack | -5/Factory | Scanalyzed Tactical Coordination Suite | -5/Factory | Scanalyzed Robot Schematics ------------------ S-27 Virus | -7/Data Miner | Free G-50 Soldier | -7/Data Miner | Free G-67 Veteran | -7/Data Miner | Free L-41 Fighter | -7/Data Miner | Free P-70 Sage | -7/Data Miner | Free I-36 Angel | -7/Data Miner | Free I-47 Archangel | -7/Data Miner | Free Fabricated ------------ M-22 Extractor | x1 | -5/Factory | Preloaded Alien Tech Used ----------------- None Achievements -------------- None Challenges ------------ None Game ------ Seed SalvageChainCycler Manual? 0 Play Time 01:58:02 Cumulative 844.4 hours Start 2021.06.07 @ 12:40:23 End 2021.06.08 @ 01:43:55 Sessions 3 Manual Loads 0 Difficulty Rogue Special Mode None Game No. 592 Rogue 588 Adventurer 4 Explorer 0 Win Type - Total 94 Types 72/9/4/4/2/0/0/2/1 Lore% 94 Gallery% 97 Achievement% 96 Wizard Run 0 Options --------- ASCII 0 Keyboard 1 Movement Vi Keybinds 0 Fullscreen 0 Font 16/Terminus Map View 76x50 Tactical HUD 1 Map Filters NONE Filters NONE Steam 1 RUN: a670dd1a-b541-4f87-9e42-1b4830a80777